fUSD/lending_fUSD_20240524
["ID","MTS","AMOUNT","RATE_DAILY","PERIOD"]
[327884133,1716579039604,-150.0,0.00024869,2]
[327884135,1716579039614,-154.30397504,0.00024919,2]
[327884137,1716579039623,-1150.0,0.00025,2]
[327884139,1716579039633,-1783.21417373,0.00025,2]
[327884142,1716579039643,-150.0,0.00025006,2]
[327884144,1716579039652,-150.0,0.00025011,2]
[327884146,1716579039662,-150.0,0.00025056,2]
[327884147,1716579039671,-150.0,0.00025117,2]
[327884149,1716579039681,-150.0,0.00025135,2]
[327884151,1716579039690,-150.0,0.0002514,2]
[327884153,1716579039700,-150.0,0.00025173,2]
[327884155,1716579039710,-150.0,0.00025196,2]
[327884157,1716579039719,-150.0,0.0002521,2]
[327884159,1716579039729,-150.0,0.00025223,2]
[327884161,1716579039738,-150.0,0.00025284,2]
[327884163,1716579039747,-783.95023,0.0002537,2]
[327884165,1716579039758,-151.19086018,0.00025635,2]
[327884167,1716579039767,-150.0,0.000257,2]
[327884169,1716579039776,-153.51597192,0.00025714,2]
[327884171,1716579039787,-150.0,0.00025728,2]
[327884173,1716579039796,-150.0,0.00025734,2]
[327884175,1716579039805,-150.0,0.00025743,2]
[327884177,1716579039815,-319.72047821,0.00025769,2]
[327884179,1716579039825,-159.51975659,0.00025769,2]
[327884181,1716579039835,-150.0,0.00025884,2]
[327884183,1716579039844,-150.0,0.00025907,2]
[327884185,1716579039854,-600.0,0.00025908,2]
[327884187,1716579039864,-150.0,0.00025991,2]
[327884189,1716579039875,-153.51597192,0.00025995,2]
[327884191,1716579039885,-150.0,0.00026001,2]
[327884193,1716579039895,-150.0,0.00026029,2]
[327884195,1716579039905,-150.0,0.00026042,2]
[327884197,1716579039916,-363.34,0.00026068,2]
[327884199,1716579039925,-150.0,0.00026068,2]
[327884201,1716579039935,-150.0,0.0002607,2]
[327884203,1716579039945,-150.0,0.00026098,2]
[327884205,1716579039954,-553.46369446,0.00026123,2]
[327884207,1716579039964,-547.28428839,0.00026322,2]
[327884209,1716579039974,-150.0,0.00026326,2]
[327884211,1716579039984,-150.0,0.00026334,2]
[327884213,1716579039994,-700.0,0.000265,9]
[327884215,1716579040005,-150.0,0.00026504,2]
[327884217,1716579040016,-150.0,0.00026515,2]
[327884219,1716579040026,-151.19086018,0.00026535,2]
[327884221,1716579040036,-1100.0,0.000266,9]
[327884223,1716579040047,-4992.2,0.00026641,2]
[327884225,1716579040057,-150.0,0.00026651,2]
[327884227,1716579040067,-150.0,0.00026685,2]
[327884229,1716579040077,-1500.0,0.000267,9]
[327884231,1716579040088,-154.57456769,0.0002675,2]
[327884233,1716579040098,-150.0,0.00026763,2]
[327884235,1716579040107,-1800.0,0.000268,9]
[327884236,1716579040117,-150.0,0.00026807,2]
[327884238,1716579040128,-154.45963167,0.00026851,2]
[327884240,1716579040138,-400.0,0.00026884,2]
[327884242,1716579040148,-300.0,0.000269,9]
[327884245,1716579040158,-216.6,0.00026921,2]
[327884246,1716579040168,-151.19086018,0.00026967,2]
[327884249,1716579040178,-1200.0,0.00027,2]
[327884251,1716579040187,-150.0,0.00027016,2]
[327884252,1716579040197,-150.0,0.00027016,2]
[327884255,1716579040207,-150.0,0.00027041,2]
[327884257,1716579040217,-786.6627749,0.00027055,2]
[327884259,1716579040228,-150.0,0.00027059,2]
[327884261,1716579040238,-200.0,0.0002718,2]
[327884263,1716579040249,-7323.76325028,0.00027218,2]
[327884265,1716579040259,-150.0,0.00027219,2]
[327884267,1716579040269,-526.15598382,0.00027224,2]
[327884268,1716579040280,-150.0,0.00027229,2]
[327884269,1716579040290,-150.0,0.00027234,2]
[327884270,1716579040300,-150.0,0.00027271,2]
[327884271,1716579040311,-200.0,0.00027278,2]
[327884272,1716579040321,-200.0,0.00027279,2]
[327884273,1716579040331,-500.0,0.00027279,2]
[327884274,1716579040341,-200.0,0.00027279,2]
[327884275,1716579040352,-150.0,0.00027279,2]
[327884276,1716579040362,-670.75883994,0.00027281,7]
[327884277,1716579040372,-3292.76668793,0.00027281,7]
[327884278,1716579040382,-154.57456769,0.00027283,2]
[327884279,1716579040392,-7180.883914,0.000273,2]
[327884280,1716579040402,-150.0,0.00027316,2]
[327884281,1716579040414,-154.57456769,0.00027352,2]
[327884282,1716579040425,-155.76744126,0.0002737,2]
[327884284,1716579040435,-150.0,0.00027373,2]
[327884286,1716579040444,-755.2853,0.000274,2]
[327884288,1716579040455,-150.0,0.000274,2]
[327884290,1716579040464,-150.0,0.000274,5]
[327884292,1716579040475,-509.66089834,0.000274,2]
[327884294,1716579040485,-500.0,0.000274,2]
[327884296,1716579040497,-200.27328274,0.000274,2]
[327884298,1716579040508,-180.02106416,0.000274,2]
[327884300,1716579040518,-189.02310332,0.000274,5]
[327884302,1716579040528,-169.22852841,0.000274,2]
[327884304,1716579040538,-150.0,0.00027424,2]
[327884306,1716579040548,-150.0,0.00027433,2]
[327884308,1716579040558,-4597.25690778,0.00027471,2]
[327884309,1716579040568,-8588.2034456,0.00027488,2]
[327884312,1716579040579,-153.0818866,0.00027488,2]
[327884314,1716579040590,-3253.6477581,0.00027488,2]
[327884316,1716579040600,-548.2518158,0.00027488,2]
[327884317,1716579040610,-155.17442459,0.00027496,2]
[327884319,1716579040620,-3192.42819884,0.00027496,5]
[327884321,1716579040630,-354.22479058,0.00027496,2]
[327884324,1716579040640,-721.03623059,0.00027497,2]
[327884325,1716579040650,-1465.62018346,0.00027497,2]
[327884327,1716579040660,-398.07928867,0.00027498,2]
[327884329,1716579040670,-18909.23913965,0.00027498,2]
[327884331,1716579040679,-183.78969856,0.00027498,2]
[327884333,1716579040689,-186.83867916,0.00027498,2]
[327884336,1716579040699,-312.43037364,0.00027498,2]
[327884337,1716579040709,-155.0,0.00027498,2]
[327884340,1716579040718,-291.33218396,0.00027498,2]
[327884341,1716579040728,-208.57383812,0.00027498,2]
[327884343,1716579040737,-155.39472073,0.00027498,2]
[327884346,1716579040748,-155.0,0.00027498,2]
[327884347,1716579040758,-505.28772991,0.00027498,2]
[327884350,1716579040768,-364.27737293,0.00027498,2]
[327884351,1716579040776,-322.11807366,0.00027498,2]
[327884353,1716579040786,-155.1859002,0.00027498,2]
[327884355,1716579040795,-2000.83899828,0.00027498,2]
[327884357,1716579040804,-155.0,0.00027498,2]
[327884359,1716579040814,-155.1225194,0.00027498,2]
[327884361,1716579040823,-208.21094231,0.00027498,2]
[327884363,1716579040832,-5875.64487291,0.00027498,2]
[327884365,1716579040842,-110085.26631412,0.00027498,2]
[327884458,1716579041728,-5031.76737515,0.00027498,2]
[327884461,1716579041740,-5348.84120625,0.00027498,2]
[327884463,1716579041752,-18806.4295995,0.00027498,2]
[327884781,1716579044573,-3679.89861316,0.000274,2]
[327884783,1716579044587,-3258.55105004,0.000274,2]
[327884785,1716579044598,-379.66152947,0.00027498,2]
[327884937,1716579046378,-3008.22117555,0.00027498,2]
[327884965,1716579046662,-715.60873901,0.00027498,2]
[327884968,1716579046675,-51596.39684873,0.00027498,2]
[327884970,1716579046685,-150.01,0.00027498,2]
[327884972,1716579046695,-3141.73278364,0.00027498,2]
[327884974,1716579046704,-205.20917542,0.00027499,2]
[327884975,1716579046713,-99234.34831582,0.000275,15]
[327884978,1716579046725,-68965.99999999,0.000275,15]
[327884980,1716579046739,-40904.80992489,0.000275,15]
[327884982,1716579046750,-1439.69233109,0.000275,15]
[327885003,1716579046939,-687.12,0.000275,15]
[327885009,1716579051431,409.97178172,0.0001,2]
[327885010,1716579052462,299.07538621,0.0001,2]
[327885011,1716579069286,408.96164252,0.0001,2]
[327885012,1716579070447,298.58746127,0.0001,2]
[327885014,1716579151558,221.2,0.00025813,120]
[327885015,1716579199147,1000.0,0.00030929,120]
[327885058,1716580232291,-344.72853411,0.00010447,2]
[327885059,1716580232301,-337.24052833,0.00010447,2]
[327885060,1716580232311,-155.0,0.00010448,2]
[327885061,1716580232320,-313.68560961,0.00010449,2]
[327885062,1716580232352,-1072.86876331,0.00010449,2]
[327885063,1716580232361,-382.52,0.00010453,2]
[327885064,1716580232371,-211.43454253,0.00011448,2]
[327885065,1716580232381,-359.0,0.00012139,2]
[327885066,1716580232390,-250.0,0.00012201,2]
[327885067,1716580232400,-250.0,0.00012201,2]
[327885068,1716580232410,-300.0,0.000123,4]
[327885069,1716580232419,-700.0,0.000124,4]
[327885070,1716580232429,-1000.0,0.000125,4]
[327885071,1716580232438,-1400.0,0.000126,4]
[327885072,1716580232448,-1800.0,0.000127,4]
[327885073,1716580232458,-382.52,0.00012717,2]
[327885074,1716580232467,-150.0,0.00012763,2]
[327885075,1716580232476,-150.0,0.00012763,2]
[327885076,1716580232486,-788.91057636,0.00012764,2]
[327885077,1716580232498,-595.31942364,0.00012764,2]
[327885078,1716580232507,-300.0,0.000128,4]
[327885079,1716580232520,-360.75268876,0.000129,2]
[327885080,1716580232534,-639.24731124,0.000129,2]
[327885081,1716580232544,-321.17924858,0.000129,2]
[327885082,1716580232555,-730.00543162,0.000129,2]
[327885083,1716580232564,-300.0,0.000129,4]
[327885084,1716580232574,-166.0239256,0.000129,2]
[327885085,1716580232583,-159.51975659,0.000129,2]
[327885086,1716580232593,-4445.91452562,0.000129,2]
[327885087,1716580232635,-179.71858318,0.000129,2]
[327885089,1716580232645,-889.84004813,0.000129,2]
[327885091,1716580232655,-319.919246,0.000129,2]
[327885093,1716580232664,-509.66089834,0.000129,2]
[327885094,1716580232673,-1336.03,0.00012938,2]
[327885095,1716580232682,-499.99,0.00012938,2]
[327885096,1716580232692,-155.0,0.00012998,2]
[327885097,1716580232702,-155.0,0.00012998,2]
[327885098,1716580232711,-155.0,0.00012998,2]
[327885099,1716580232720,-409.91577249,0.00012998,2]
[327885100,1716580232730,-155.0,0.00012998,2]
[327885101,1716580232740,-204.9501833,0.00012998,2]
[327885102,1716580232749,-155.0,0.00012998,2]
[327885103,1716580232758,-3285.77643226,0.00012998,2]
[327885104,1716580232767,-321.83343734,0.00012998,2]
[327885105,1716580232777,-324.99711042,0.00012998,2]
[327885106,1716580232788,-155.0,0.00012998,2]
[327885107,1716580232801,-883.0724361,0.00012999,2]
[327885108,1716580232811,-9665.97235365,0.00013,2]
[327885109,1716580232823,-746.56164777,0.00013,2]
[327885110,1716580232834,-830.08689098,0.00013,2]
[327885111,1716580232846,-535.511,0.00013,2]
[327885112,1716580232857,-500.0,0.00013,2]
[327885113,1716580232897,-2067.24573076,0.00013,2]
[327885114,1716580232908,-2400.0,0.00013,2]
[327885115,1716580232919,-9898.41396264,0.00013,2]
[327885118,1716580238278,-13796.77535432,0.00013,2]
[327885119,1716580238344,-6774529.222809,0.00013,2]
[327885120,1716580238357,-923974.54940485,0.00013,2]
[327885121,1716580238366,-99049.07005176,0.00013,2]
[327885122,1716580238394,-7706.84209174,0.00013,2]
[327885123,1716580238413,-3062.67819403,0.00013,2]
[327885124,1716580238425,-1548.16622598,0.00013,2]
[327885125,1716580238456,-3159.44401828,0.00013,2]
[327885126,1716580238468,-318.54331447,0.00013,2]
[327885127,1716580238480,-529.82133345,0.00013,2]
[327885128,1716580238493,-1391.18950319,0.00013,2]
[327885129,1716580238521,-3129.58715822,0.00013,2]
[327885130,1716580238533,-17536.23838421,0.00013,2]
[327885131,1716580238648,-20523.30209338,0.00013,2]
[327885132,1716580238709,-3726.19972867,0.00013,2]
[327885341,1716580240789,-200.27328274,0.000129,2]
[327885343,1716580240802,-441.91545712,0.00013,2]
[327885355,1716580240912,-2788.00917493,0.00013,2]
[327885369,1716580241032,-1998.5,0.00013,2]
[327885606,1716580243271,-16525.78396513,0.00013,2]
[327885626,1716580243402,-1640.91763236,0.00013,2]
[327885667,1716580243848,-975.40414729,0.00013,2]
[327885668,1716580243859,-1299.7799031,0.00013,2]
[327885669,1716580243871,-397.00005046,0.00013,2]
[327885670,1716580243884,-1133.20005046,0.00013,2]
[327885672,1716580243895,-1684.77778884,0.00013,2]
[327885931,1716580246350,-155.0,0.00012999,2]
[327885933,1716580246360,-337.24052833,0.00012999,2]
[327885935,1716580246370,-3286.40552098,0.00013,2]
[327885942,1716580246419,-2094.05251511,0.00013,2]
[327885950,1716580246488,-1595.25934319,0.00013,2]
[327885958,1716580246558,-631.55097061,0.00013,2]
[327885960,1716580246569,-2586849.44193798,0.00013,2]
[327885963,1716580246579,-1309.71,0.00013699,2]
[327885964,1716580246588,-1500.0,0.0001387,2]
[327885967,1716580246598,-150.88,0.00013973,2]
[327885968,1716580246607,-176.64,0.00014296,2]
[327885971,1716580246617,-1051.18468014,0.00014511,2]
[327885973,1716580246626,-382.52,0.00014981,2]
[327885974,1716580246636,-159.51975659,0.00015317,2]
[327885977,1716580246646,-1384.23,0.00015504,2]
[327885979,1716580246655,-319.91924595,0.00015659,2]
[327885980,1716580246664,-1051.18468014,0.00016122,2]
[327885983,1716580246673,-180.02106416,0.000169,2]
[327885984,1716580246683,-1071.1,0.00016954,2]
[327885986,1716580246692,-1071.1,0.00016958,2]
[327885988,1716580246701,-1071.1,0.00016963,2]
[327885990,1716580246711,-1071.1,0.00016967,2]
[327885993,1716580246721,-1071.1,0.00016971,2]
[327885995,1716580246730,-1071.1,0.00016976,2]
[327885996,1716580246739,-1071.1,0.0001698,2]
[327885999,1716580246749,-1071.1,0.00016985,2]
[327886000,1716580246758,-1071.1,0.00016989,2]
[327886002,1716580246768,-1071.1,0.00016994,2]
[327886005,1716580246777,-1071.1,0.00016998,2]
[327886007,1716580246787,-4351.55479547,0.00017,2]
[327886009,1716580246799,-1071.1,0.00017003,2]
[327886011,1716580246812,-1071.1,0.00017007,2]
[327886012,1716580246821,-1071.1,0.00017012,2]
[327886013,1716580246830,-1071.1,0.00017016,2]
[327886014,1716580246839,-1071.1,0.00017021,2]
[327886015,1716580246849,-1071.1,0.00017025,2]
[327886016,1716580246858,-1071.1,0.0001703,2]
[327886017,1716580246867,-1071.1,0.00017034,2]
[327886018,1716580246876,-1071.1,0.00017038,2]
[327886019,1716580246888,-382.52,0.00017245,2]
[327886020,1716580246897,-313.09905444,0.00017259,2]
[327886021,1716580246906,-1051.18468014,0.00017733,2]
[327886022,1716580246915,-159.51975659,0.00017733,2]
[327886023,1716580246923,-804.18664536,0.00018,2]
[327886025,1716580246932,-1384.23,0.00018244,2]
[327886026,1716580246941,-319.91924595,0.00018417,2]
[327886028,1716580246951,-352.65331821,0.00019178,2]
[327886030,1716580246961,-189.84447611,0.00019178,2]
[327886032,1716580246970,-321.13390217,0.00019178,2]
[327886034,1716580246980,-464.54,0.000192,2]
[327886036,1716580246989,-743.96,0.000192,2]
[327886038,1716580246999,-1051.18468014,0.00019344,2]
[327886040,1716580247008,-382.52,0.00019508,2]
[327886043,1716580247018,-2470.0,0.000196,3]
[327886044,1716580247027,-811.0,0.000196,3]
[327886046,1716580247036,-268.43768065,0.0002,2]
[327886048,1716580247047,-838.66098753,0.0002,2]
[327886051,1716580247056,-53393.92597738,0.0002,2]
[327886052,1716580247066,-166.0239256,0.0002015,2]
[327886054,1716580247076,-159.51975659,0.0002015,2]
[327886056,1716580247085,-509.66089832,0.0002015,2]
[327886058,1716580247094,-200.27328274,0.0002015,2]
[327886061,1716580247104,-1051.18468014,0.00020956,2]
[327886063,1716580247114,-1050.0,0.00021,2]
[327886064,1716580247123,-319.91924595,0.00021176,2]
[327886066,1716580247133,-382.52,0.00021772,2]
[327886068,1716580247142,-197.87,0.00021918,2]
[327886070,1716580247152,-250.0,0.00021918,2]
[327886072,1716580247161,-329.73,0.00021918,2]
[327886074,1716580247170,-155.76744126,0.00022151,2]
[327886076,1716580247180,-157.82414398,0.00022201,2]
[327886078,1716580247189,-1000.0,0.00022295,2]
[327886080,1716580247199,-154.57456769,0.00022498,2]
[327886083,1716580247208,-1051.18468014,0.00022567,2]
[327886085,1716580247218,-159.51975659,0.00022567,2]
[327886087,1716580247227,-12514.95512304,0.000229,5]
[327886089,1716580247236,-154.30397504,0.00022913,2]
[327886091,1716580247246,-154.45963167,0.00022949,2]
[327886093,1716580247255,-1100.0,0.00023,2]
[327886095,1716580247263,-154.83587233,0.00023189,2]
[327886097,1716580247272,-464.54,0.000233,2]
[327886099,1716580247282,-743.96,0.000233,2]
[327886101,1716580247291,-553.46369446,0.000234,2]
[327886103,1716580247301,-155.45114667,0.00023578,2]
[327886105,1716580247310,-7583.843,0.00023707,2]
[327886106,1716580247320,-319.91924595,0.00023934,2]
[327886109,1716580247329,-71582.23947502,0.00024,15]
[327886110,1716580247339,-382.52,0.00024036,2]
[327886113,1716580247348,-1051.18468014,0.00024178,2]
[327886115,1716580247358,-180.0,0.0002423,2]
[327886117,1716580247367,-3701.928,0.00024307,2]
[327886119,1716580247377,-151.19086018,0.00024432,2]
[327886121,1716580247387,-153.91462985,0.00024513,2]
[327886123,1716580247396,-154.30397504,0.00024656,2]
[327886124,1716580247405,-154.83587233,0.00024662,2]
[327886126,1716580247415,-1948.0,0.000249,2]
[327886128,1716580247425,-153.51597192,0.00024959,2]
[327886130,1716580247435,-159.51975659,0.00024983,2]
[327886132,1716580247444,-1150.0,0.00025,2]
[327886134,1716580247453,-3244.39811163,0.00025,2]
[327886136,1716580247463,-985.59237369,0.00025,2]
[327886138,1716580247472,-1000.0,0.00025082,2]
[327886140,1716580247481,-150.88,0.00025156,2]
[327886142,1716580247491,-154.57456769,0.00025234,2]
[327886144,1716580247500,-154.57456769,0.00025367,2]
[327886146,1716580247510,-1051.18468014,0.00025789,2]
[327886148,1716580247520,-154.57456769,0.00026147,2]
[327886150,1716580247529,-151.19086018,0.00026239,2]
[327886152,1716580247538,-382.52,0.000263,2]
[327886154,1716580247549,-150.0,0.00026322,2]
[327886156,1716580247558,-150.0,0.00026624,2]
[327886158,1716580247568,-154.57456769,0.00026676,2]
[327886160,1716580247577,-319.91924595,0.00026693,2]
[327886162,1716580247586,-150.0,0.00026827,2]
[327886164,1716580247595,-150.0,0.00026858,2]
[327886166,1716580247604,-300.0,0.000269,9]
[327886168,1716580247613,-150.0,0.00026926,2]
[327886170,1716580247623,-150.0,0.00026987,2]
[327886172,1716580247632,-1200.0,0.00027,2]
[327886174,1716580247641,-464.54,0.00027,2]
[327886176,1716580247650,-743.96,0.00027,2]
[327886178,1716580247659,-4873.0,0.00027072,2]
[327886180,1716580247668,-150.0,0.00027079,2]
[327886182,1716580247678,-150.0,0.00027096,2]
[327886184,1716580247687,-150.0,0.00027195,2]
[327886186,1716580247696,-151.19086018,0.00027209,2]
[327886188,1716580247706,-693.41307162,0.00027224,2]
[327886190,1716580247715,-1000.0,0.00027278,2]
[327886192,1716580247725,-200.0,0.00027279,2]
[327886194,1716580247734,-1000.0,0.00027279,2]
[327886196,1716580247743,-200.0,0.00027279,2]
[327886198,1716580247752,-500.0,0.00027279,2]
[327886200,1716580247761,-3292.76668793,0.00027281,7]
[327886202,1716580247771,-670.75883994,0.00027281,7]
[327886204,1716580247780,-27476.1765,0.00027298,2]
[327886206,1716580247789,-100000.0,0.00027298,2]
[327886208,1716580247804,-7180.883914,0.000273,2]
[327886210,1716580247813,-380.70037141,0.00027301,2]
[327886212,1716580247823,-1000.0,0.00027362,2]
[327886214,1716580247833,-1100.7927,0.00027362,2]
[327886216,1716580247843,-1566.72319261,0.00027363,2]
[327886218,1716580247853,-4597.25690778,0.00027371,2]
[327886220,1716580247862,-150.0,0.00027395,2]
[327886222,1716580247872,-398.07928867,0.00027396,2]
[327886224,1716580247883,-364.27737293,0.00027396,2]
[327886226,1716580247894,-1465.62018346,0.00027396,2]
[327886228,1716580247904,-155.39472073,0.00027396,2]
[327886230,1716580247913,-3192.42819884,0.00027396,5]
[327886232,1716580247923,-2000.83899828,0.00027396,2]
[327886234,1716580247932,-155.0,0.00027396,2]
[327886236,1716580247942,-155.1859002,0.00027396,2]
[327886238,1716580247951,-155.0,0.00027396,2]
[327886240,1716580247961,-155.0,0.00027396,2]
[327886242,1716580247970,-312.43037364,0.00027396,2]
[327886244,1716580247980,-354.22479058,0.00027397,2]
[327886246,1716580247989,-186.83867916,0.00027397,2]
[327886248,1716580247998,-208.57383812,0.00027397,2]
[327886250,1716580248007,-721.03623059,0.00027397,2]
[327886252,1716580248017,-155.1225194,0.00027397,2]
[327886254,1716580248026,-505.28772991,0.00027397,2]
[327886256,1716580248035,-155.17442459,0.00027397,2]
[327886258,1716580248045,-322.11807366,0.00027397,2]
[327886260,1716580248054,-150.0,0.00027398,2]
[327886262,1716580248063,-245000.0,0.00027398,2]
[327886264,1716580248073,-1245.3706,0.00027398,2]
[327886266,1716580248082,-500.0,0.00027398,2]
[327886268,1716580248092,-6103.1360419,0.000274,2]
[327886270,1716580248102,-755.2853,0.000274,2]
[327886272,1716580248111,-1051.18468014,0.000274,2]
[327886274,1716580248121,-166.0239256,0.000274,2]
[327886276,1716580248130,-159.51975659,0.000274,2]
[327886278,1716580248139,-4625.63310879,0.000274,2]
[327886280,1716580248148,-150.0,0.000274,5]
[327886282,1716580248159,-509.66089832,0.000274,2]
[327886284,1716580248169,-150.0,0.00027438,2]
[327886286,1716580248179,-153.51597192,0.00027441,2]
[327886288,1716580248189,-150.0,0.00027445,2]
[327886290,1716580248198,-156.00929946,0.00027498,2]
[327886292,1716580248208,-238.43858843,0.00027498,2]
[327886294,1716580248217,-208.21094231,0.00027498,2]
[327886296,1716580248228,-5875.64487291,0.00027498,2]
[327886298,1716580248238,-4939.28,0.00027498,2]
[327886300,1716580248248,-1099.77503,0.00027499,2]
[327886302,1716580248257,-6442610.49693434,0.000275,5]
[327886304,1716580248267,-160.0,0.000275,2]
[327886306,1716580248277,-155.56883352,0.000275,2]
[327886308,1716580248287,-576.0,0.000275,11]
[327886310,1716580248297,-24697.555488,0.00027505,2]
[327886329,1716580248476,-1036.6345334,0.00027505,2]
[327886331,1716580248486,-161.0350808,0.00027524,2]
[327886333,1716580248495,-3300.7186589,0.00027543,2]
[327886335,1716580248508,-153.08188683,0.00027562,2]
[327886338,1716580248518,-150.0,0.00027568,2]
[327886340,1716580248528,-2769.8879422,0.00027581,2]
[327886342,1716580248537,-161.0350808,0.00027581,2]
[327886343,1716580248548,-20735.532691,0.00027581,2]
[327886345,1716580248558,-870.3359029,0.00027581,2]
[327886348,1716580248567,-1016527.2,0.000276,5]
[327886349,1716580248576,-269.592234,0.000276,7]
[327886351,1716580248587,-168.728354,0.000276,7]
[327886354,1716580248596,-151.0,0.000276,7]
[327886355,1716580248606,-151.0,0.000276,7]
[327886357,1716580248615,-151.0,0.000276,7]
[327886360,1716580248625,-151.0,0.000276,7]
[327886361,1716580248634,-151.0,0.000276,7]
[327886363,1716580248644,-151.0,0.000276,7]
[327886366,1716580248654,-151.988256,0.000276,7]
[327886368,1716580248664,-151.988256,0.000276,7]
[327886369,1716580248673,-151.0,0.000276,7]
[327886371,1716580248683,-151.0,0.000276,7]
[327886373,1716580248693,-151.0,0.000276,7]
[327886375,1716580248703,-151.0,0.000276,7]
[327886377,1716580248712,-151.0,0.000276,7]
[327886379,1716580248722,-151.0,0.000276,7]
[327886382,1716580248732,-151.0,0.000276,7]
[327886384,1716580248742,-151.0,0.000276,7]
[327886385,1716580248751,-151.0,0.000276,7]
[327886388,1716580248760,-151.0,0.000276,7]
[327886390,1716580248770,-151.0,0.000276,7]
[327886392,1716580248780,-151.0,0.000276,7]
[327886393,1716580248790,-263.523695,0.000276,7]
[327886396,1716580248803,-151.0,0.000276,7]
[327886397,1716580248814,-175.12996,0.000276,7]
[327886399,1716580248824,-151.0,0.000276,7]
[327886402,1716580248834,-151.0,0.000276,7]
[327886403,1716580248846,-151.0,0.000276,7]
[327886405,1716580248856,-151.0,0.000276,7]
[327886407,1716580248866,-151.0,0.000276,7]
[327886410,1716580248879,-151.0,0.000276,7]
[327886411,1716580248889,-151.0,0.000276,7]
[327886414,1716580248899,-151.0,0.000276,7]
[327886416,1716580248908,-151.0,0.000276,7]
[327886417,1716580248917,-206.074243,0.000276,7]
[327886419,1716580248927,-151.0,0.000276,7]
[327886421,1716580248936,-151.0,0.000276,7]
[327886423,1716580248945,-151.0,0.000276,7]
[327886425,1716580248954,-151.0,0.000276,7]
[327886427,1716580248964,-252.767603,0.000276,7]
[327886429,1716580248973,-254.920576,0.000276,7]
[327886431,1716580248982,-254.920576,0.000276,7]
[327886433,1716580248992,-151.0,0.000276,7]
[327886435,1716580249002,-151.0,0.000276,7]
[327886437,1716580249011,-151.0,0.000276,7]
[327886439,1716580249021,-180.558719,0.000276,7]
[327886441,1716580249031,-151.0,0.000276,7]
[327886443,1716580249041,-155.660642,0.000276,7]
[327886445,1716580249051,-151.0,0.000276,7]
[327886447,1716580249060,-151.0,0.000276,7]
[327886449,1716580249069,-151.0,0.000276,7]
[327886451,1716580249079,-151.0,0.000276,7]
[327886453,1716580249089,-156.065902,0.000276,7]
[327886455,1716580249099,-151.0,0.000276,7]
[327886457,1716580249108,-151.0,0.000276,7]
[327886459,1716580249119,-151.0,0.000276,7]
[327886461,1716580249128,-151.0,0.000276,7]
[327886463,1716580249137,-188.349215,0.000276,7]
[327886465,1716580249147,-188.349215,0.000276,7]
[327886467,1716580249156,-151.0,0.000276,7]
[327886469,1716580249166,-151.0,0.000276,7]
[327886471,1716580249176,-151.0,0.000276,7]
[327886473,1716580249186,-151.0,0.000276,7]
[327886475,1716580249195,-154.748108,0.000276,7]
[327886477,1716580249205,-151.0,0.000276,7]
[327886479,1716580249215,-151.0,0.000276,7]
[327886481,1716580249224,-151.0,0.000276,7]
[327886483,1716580249233,-151.0,0.000276,7]
[327886485,1716580249243,-2300.449256,0.000276,7]
[327886487,1716580249252,-151.0,0.000276,7]
[327886489,1716580249262,-2300.449256,0.000276,7]
[327886491,1716580249272,-151.0,0.000276,7]
[327886493,1716580249282,-151.0,0.000276,7]